bitfinex/quotes_ETHUSD_20250326
["timestamp","ask_amount","ask_price","bid_price","bid_amount"]
[1742998993674,3.0,2015.9,2014.8,4.74257039]
[1742998993988,7.792,2015.8,2014.8,9.70564039]
[1742998994161,7.784,2015.8,2014.8,4.74257039]
[1742998994488,0.7784,2015.7,2014.8,4.74257039]
[1742998994788,0.7784,2015.7,2014.9,0.8171]
[1742998994987,3.0,2015.5,2014.6,0.8171]
[1742998995189,1.01988724,2015.6,2014.6,0.8171]
[1742998995389,1.01988724,2015.6,2014.0,7.769]
[1742998995390,3.0,2015.2,2014.1,0.7789]
[1742998995590,7.778,2015.1,2014.1,0.7789]
[1742998995777,31.657,2015.0,2014.1,0.7789]
[1742998995977,3.0,2014.9,2013.8,5.64065759]
[1742998996180,3.0,2014.8,2013.8,5.64065759]
[1742998996381,0.70029704,2014.7,2013.8,0.8980872]
[1742998996559,3.0,2014.6,2013.8,0.8980872]
[1742998996757,7.78,2014.5,2013.8,0.8980872]
[1742998997868,3.0,2014.4,2013.8,0.8980872]
[1742998998089,3.0,2014.3,2013.8,0.1191872]
[1742998998291,0.6,2014.2,2013.8,0.1191872]
[1742998999222,0.98038141,2014.4,2013.8,0.1191872]
[1742999000924,3.0,2014.2,2013.8,0.1191872]
[1742999001194,7.714,2014.1,2013.8,0.0691872]
[1742999001373,1.0714,2014.0,2013.8,0.0691872]
[1742999001575,6.0,2014.5,2013.8,0.0691872]
[1742999001576,7.702,2014.1,2013.8,0.0691872]
[1742999001773,7.697,2014.5,2013.8,0.0691872]
[1742999001973,3.0,2014.7,2013.8,0.0691872]
[1742999002185,3.0,2015.1,2013.9,0.8051]
[1742999002386,7.69,2015.0,2014.0,4.74257039]
[1742999002583,3.6349,2014.9,2014.0,4.74257039]
[1742999002988,3.6349,2014.9,2014.1,5.71635]
[1742999003194,7.697,2015.3,2014.5,0.7516]
[1742999003365,1.00764892,2015.2,2014.5,0.7516]
[1742999004413,7.697,2015.3,2014.7,0.8264]
[1742999004633,3.0,2015.8,2014.7,0.8264]
[1742999004832,1.01690528,2015.3,2014.9,4.74257039]
[1742999004983,1.01690528,2015.3,2014.7,0.8264]
[1742999005182,1.01690528,2015.3,2015.0,0.7627]
[1742999005495,0.55,2015.9,2015.3,5.71604]
[1742999005699,0.55,2015.9,2015.5,4.74257039]
[1742999005893,0.55,2015.9,2015.6,0.7541]
[1742999006737,0.55,2015.9,2015.5,9.70407039]
[1742999006738,29.65470054,2016.6,2015.8,10.47627039]
[1742999006892,3.86250054,2016.6,2016.1,4.74257039]
[1742999007229,0.99670054,2016.6,2016.2,0.7729]
[1742999007434,7.646,2017.0,2016.2,0.7729]
[1742999008086,1.00451265,2016.7,2016.2,0.7729]
[1742999008533,1.00451265,2016.7,2016.4,4.74257039]
[1742999008684,1.00451265,2016.7,2016.5,0.8189]
[1742999008880,7.631,2017.4,2016.5,0.8189]
[1742999009686,3.5498,2017.6,2016.5,0.8189]
[1742999009888,7.611,2017.3,2016.5,0.8189]
[1742999010232,1.01663916,2016.8,2016.5,0.8189]
[1742999014625,7.499,2017.6,2016.8,0.7692]
[1742999015636,28.652,2017.7,2016.8,0.81877872]
[1742999015839,0.5498,2018.3,2016.8,5.77699872]
[1742999016040,0.5698,2018.7,2017.7,0.7948]
[1742999016245,3.0,2018.4,2017.7,0.7948]
[1742999016538,0.3,2018.3,2017.7,0.7948]
[1742999016741,7.513,2018.6,2017.7,0.7948]
[1742999017312,0.02,2018.9,2017.7,0.7948]
[1742999017723,3.02,2018.9,2017.7,0.7948]
[1742999017932,0.02,2018.9,2017.7,0.7948]
[1742999018244,3.0,2018.7,2017.7,0.7948]
[1742999018423,0.3,2018.6,2017.7,0.7948]
[1742999019625,3.0,2018.4,2017.7,0.7948]
[1742999019956,7.468,2018.3,2017.7,0.7948]
[1742999020365,3.0,2018.2,2017.2,0.7701]
[1742999020716,3.0,2018.1,2017.2,0.7701]
[1742999020918,3.6,2018.0,2017.2,0.7701]
[1742999021564,3.0,2017.8,2017.0,0.8244]
[1742999021730,3.0,2017.6,2017.0,0.8244]
[1742999022456,7.436,2017.7,2017.0,0.8244]
[1742999023663,3.0,2017.6,2017.0,0.8244]
[1742999023819,1.10058,2017.5,2017.0,0.8244]
[1742999024431,8.0058,2017.7,2017.0,0.8244]
[1742999024642,3.6,2018.0,2017.0,0.8244]
[1742999025156,3.0,2017.7,2017.0,0.8244]
[1742999025357,3.0,2017.4,2016.5,0.82841237]
[1742999025561,3.0,2017.2,2016.6,0.7663]
[1742999025857,3.0,2017.2,2015.7,4.96092]
[1742999025858,3.0,2016.7,2015.7,0.7663]
[1742999026029,3.0,2016.5,2015.7,0.7663]
[1742999026224,7.442,2016.6,2015.7,0.7663]
[1742999026437,0.7442,2016.5,2015.7,0.7663]
[1742999026615,7.442,2016.6,2015.9,4.74257039]
[1742999027054,7.424,2017.0,2015.9,4.74257039]
[1742999027225,7.424,2017.0,2015.7,0.7663]
[1742999027226,3.0,2016.7,2015.7,0.7663]
[1742999027433,3.0,2016.9,2015.7,0.7663]
[1742999027631,1.3424,2016.8,2016.0,0.7987]
[1742999027833,7.42,2016.9,2016.0,0.7987]
[1742999028035,7.42,2016.9,2016.2,4.74257039]
[1742999028357,28.619,2017.1,2016.3,0.794]
[1742999028854,7.405,2017.3,2016.3,0.794]
[1742999029255,3.0,2017.2,2016.3,0.794]
[1742999029464,1.3405,2017.1,2016.3,0.794]
[1742999030230,10.419,2017.2,2016.3,0.794]
[1742999030748,7.414,2017.1,2016.3,0.794]
[1742999031967,3.0,2017.3,2016.3,0.794]
[1742999032150,7.384,2017.1,2016.3,0.794]
[1742999033529,7.349,2017.1,2016.3,0.794]
[1742999033731,1.0349,2017.0,2016.3,0.794]
[1742999035370,3.0,2017.6,2016.5,4.95896]
[1742999035527,3.0,2017.6,2016.6,0.04958495]
[1742999035730,7.315,2017.9,2016.8,3.7574]
[1742999035937,7.315,2017.9,2016.9,0.04957536]
[1742999036240,3.5938,2017.7,2016.8,0.7574]
[1742999037360,3.0,2017.5,2016.8,0.7574]
[1742999037765,3.5938,2017.7,2016.8,0.7574]
[1742999038689,3.5938,2017.7,2016.7,9.70099039]
[1742999038690,3.5938,2017.7,2017.0,0.7725]
[1742999043870,4.1636,2017.7,2017.0,0.7725]
[1742999044077,3.0,2017.4,2016.2,0.8318]
[1742999044391,7.188,2017.3,2016.4,0.8317]
[1742999044562,7.188,2017.3,2016.5,0.8317]
[1742999044958,3.0,2017.1,2016.5,0.8317]
[1742999045196,3.5698,2017.1,2015.9,0.79]
[1742999045395,0.35698,2017.0,2015.9,0.79]
[1742999045721,0.35698,2017.0,2016.1,0.79]
[1742999047607,3.0,2016.8,2016.1,0.79]
[1742999047907,7.147,2016.7,2016.1,0.79]
[1742999051304,3.0,2017.4,2016.3,0.7581]
[1742999051480,0.3,2017.3,2016.4,0.7581]
[1742999052509,28.625,2017.5,2016.6,0.8083]
[1742999052700,28.625,2017.5,2016.9,0.8083]
[1742999053480,28.625,2017.5,2016.9,0.85787464]
[1742999053680,7.086,2017.7,2016.9,0.8083]
[1742999053891,3.0,2018.0,2017.0,0.778]
[1742999054106,10.064,2018.0,2017.2,0.778]
[1742999054615,7.059,2017.9,2017.2,0.778]
[1742999054989,3.5698,2018.6,2017.2,0.778]
[1742999055218,7.044,2018.5,2017.4,0.8188]
[1742999055513,1.06138,2018.4,2017.4,0.8188]
[1742999055813,1.06138,2018.4,2017.6,0.7765]
[1742999055978,7.042,2018.6,2017.8,5.73226]
[1742999056179,7.042,2018.6,2017.9,0.04954962]
[1742999056384,7.042,2018.6,2018.0,0.7765]
[1742999057197,0.02,2018.9,2018.0,5.73176]
[1742999057387,0.02,2018.9,2018.2,0.7765]
[1742999057718,0.02,2018.9,2018.2,4.79211528]
[1742999057884,0.02,2018.9,2018.3,0.7765]
[1742999058286,0.02,2018.9,2018.5,0.7598]
[1742999059184,0.02,2018.9,2018.6,0.04953624]
[1742999059386,0.02,2018.9,2018.7,0.8153]
[1742999061338,0.02,2018.9,2018.8,0.04953153]
[1742999061525,0.02,2018.9,2018.8,0.84803153]
[1742999062091,0.02,2018.9,2018.8,0.7985]
[1742999062293,0.55,2019.8,2018.8,7.74257039]
[1742999062517,0.55,2019.8,2019.0,0.7985]
[1742999064390,3.55,2019.8,2019.0,0.7985]
[1742999065062,3.92766594,2019.8,2019.0,0.7985]
[1742999065272,3.0,2019.6,2019.0,0.7985]
[1742999065622,3.0,2019.6,2018.4,0.7966]
[1742999065826,0.35898,2019.5,2018.4,0.7966]
[1742999066073,3.0,2019.3,2018.4,0.7966]
[1742999066426,0.5898,2019.1,2018.4,0.7966]
[1742999066829,34.598,2019.2,2018.4,0.7966]
[1742999067058,28.598,2019.2,2018.4,0.7966]
[1742999067251,3.0,2019.4,2018.2,4.54757039]
[1742999067453,6.918,2019.2,2018.2,0.45971112]
[1742999067871,6.918,2019.2,2017.9,9.69809039]
[1742999067872,3.0,2019.1,2017.9,4.74257039]
[1742999068074,3.7782,2019.1,2017.9,4.74257039]
[1742999068365,3.0,2018.8,2017.6,4.74257039]
[1742999068956,6.918,2019.2,2017.9,4.74257039]
[1742999069159,0.9918,2019.1,2018.2,9.69738039]
[1742999069356,0.9918,2019.1,2018.3,0.04953871]
[1742999069572,0.9918,2019.1,2018.2,4.74257039]
[1742999070482,3.0,2019.0,2018.1,0.8088]
[1742999072150,3.0,2018.9,2018.1,0.8088]
[1742999072349,3.0,2018.6,2018.1,0.8088]
[1742999072565,6.909,2018.5,2018.1,0.8088]
[1742999072894,32.348,2018.4,2017.4,0.8078]
[1742999073261,29.348,2018.4,2017.4,0.8078]
[1742999073590,3.6257,2018.3,2017.4,0.8078]
[1742999073950,28.598,2018.4,2017.6,4.74257039]
[1742999074156,28.598,2018.4,2017.7,0.7939]
[1742999076578,0.6,2018.8,2017.7,0.7939]
[1742999076579,0.6,2018.8,2017.8,0.04955477]
[1742999076751,29.9608213,2019.1,2018.1,0.8012]
[1742999076752,29.3625,2019.1,2018.1,0.8012]
[1742999076957,29.3625,2019.1,2018.3,0.8012]
[1742999076958,35.452,2019.1,2018.3,0.8012]
[1742999077157,38.452,2019.1,2018.3,0.8012]
[1742999077864,6.849,2019.0,2018.3,0.8012]
[1742999078157,6.849,2019.0,2018.3,1.376814]
[1742999078682,6.849,2019.0,2018.3,0.8012]
[1742999079658,9.849,2019.0,2018.3,0.8012]
[1742999079964,0.7943,2018.9,2018.3,0.8012]
[1742999080578,9.849,2019.0,2018.3,0.8012]
[1742999080955,3.0,2018.7,2017.9,0.7978]
[1742999081156,1.0792,2018.6,2017.2,0.7978]
[1742999081367,3.0,2018.4,2017.2,0.7978]
[1742999081586,6.826,2018.3,2017.2,0.7978]
[1742999082167,3.0,2018.0,2017.2,0.7978]
[1742999084182,9.826,2018.3,2017.2,0.7978]
[1742999084485,7.85242,2018.2,2017.3,14.5]
[1742999084694,1.06442,2018.2,2017.4,0.7568]
[1742999084986,0.3,2018.6,2017.4,0.7568]
[1742999084987,9.785,2018.4,2017.4,0.7568]
[1742999085461,6.768,2018.3,2017.4,0.7568]
[1742999087190,7.049,2018.6,2017.7,0.7582]
[1742999087487,6.749,2018.6,2017.8,0.7582]
[1742999087986,9.749,2018.6,2017.8,0.7582]
[1742999088161,0.9749,2018.5,2017.8,0.7582]
[1742999088760,6.768,2018.4,2017.8,0.7582]
[1742999089579,3.0,2018.1,2017.4,0.7646]
[1742999089779,3.0,2017.5,2016.4,0.7646]
[1742999089994,7.085,2017.4,2016.4,0.7646]
[1742999091288,3.0,2017.2,2016.4,0.7646]
[1742999091679,3.8073,2017.1,2016.4,0.7646]
[1742999092565,1.01077724,2016.8,2016.4,0.7646]
[1742999092862,7.76277724,2016.8,2016.4,0.7646]
[1742999093256,8.53905496,2016.8,2016.4,0.7646]
[1742999094406,1.78705496,2016.8,2016.4,0.7646]
[1742999094652,6.74,2016.7,2016.1,0.02]
[1742999094856,6.74,2016.7,2016.1,0.7716]
[1742999097302,3.0,2016.4,2016.1,0.02]
[1742999097635,0.98288792,2016.3,2016.1,0.02]
[1742999098738,0.7545,2016.2,2016.1,0.02]
[1742999098930,3.0,2015.8,2014.4,0.8172]
[1742999099126,36.0795,2015.7,2014.4,0.8172]
[1742999099325,36.0795,2015.7,2014.4,22.46402]
[1742999099641,36.0795,2015.7,2014.5,0.8172]
[1742999099839,3.90795,2015.6,2014.5,2.82317704]
[1742999100239,3.90795,2015.6,2014.5,0.8172]
[1742999100959,0.98249031,2015.3,2014.5,0.8172]
[1742999101256,6.693,2015.2,2014.5,0.8172]
[1742999101630,0.98249031,2015.3,2014.8,0.8241]
[1742999101845,0.98249031,2015.3,2015.0,0.8324]
[1742999102143,3.98249031,2015.3,2014.6,0.8324]
[1742999102350,3.98249031,2015.3,2014.1,0.02]
[1742999102351,0.7655,2014.9,2014.1,0.02]
[1742999102515,3.0,2014.7,2014.1,0.02]
[1742999102709,7.96158903,2015.2,2014.2,0.8207]
[1742999103044,6.90795,2015.6,2014.4,0.8207]
[1742999103045,4.67345,2015.6,2014.4,0.8207]
[1742999103243,6.76,2015.5,2014.7,0.763]
[1742999103545,6.762,2015.9,2015.1,4.96243]
[1742999103712,6.762,2015.9,2015.3,0.761]
[1742999103915,6.756,2015.9,2015.3,0.761]
[1742999104349,7.76901581,2015.9,2015.3,0.761]
[1742999104929,1.01301581,2015.9,2015.3,0.761]
[1742999105122,1.01301581,2015.9,2015.3,15.261]
[1742999105323,1.01301581,2015.9,2015.5,5.71524]
[1742999105646,6.765,2016.2,2015.7,0.7538]
[1742999106009,0.97223257,2016.1,2015.7,0.7538]
[1742999106441,0.97223257,2016.1,2015.1,7.74257039]
[1742999106620,0.97223257,2016.1,2015.4,0.8101]
[1742999106819,0.77372326,2016.0,2015.4,0.8101]
[1742999107847,0.77372326,2016.0,2015.1,4.74257039]
[1742999107848,3.77372326,2016.0,2015.1,0.7945]
[1742999108028,3.0,2015.7,2014.8,0.7945]
[1742999108223,3.0,2015.4,2014.2,0.7945]
[1742999108424,31.632,2015.4,2014.2,0.7945]
[1742999108747,3.0,2014.8,2014.1,0.02]
[1742999108910,5.55997039,2015.0,2014.1,0.02]
[1742999108911,3.0,2014.4,2014.1,0.02]
[1742999109564,28.634,2014.3,2014.1,0.02]
[1742999109754,3.936,2014.2,2014.1,0.02]
[1742999110044,3.0,2013.9,2013.8,0.0691872]
[1742999110231,9.738,2013.9,2013.8,0.0691872]
[1742999111250,14.666821,2013.9,2013.8,0.0691872]
[1742999111425,13.7779023,2013.9,2013.8,0.0691872]
[1742999111625,13.8279023,2013.9,2013.8,0.0691872]
[1742999111829,11.6893693,2013.9,2013.8,0.0691872]
[1742999112147,22.9952333,2013.9,2013.8,0.0691872]
[1742999112658,22.9952333,2013.9,2012.3,0.005]
[1742999112659,3.0,2013.3,2012.3,0.005]
[1742999112947,3.0,2013.0,2012.3,0.005]
[1742999113149,3.0,2013.0,2012.1,0.02]
[1742999113150,4.74257039,2012.4,2012.1,0.02]
[1742999113360,3.0,2011.9,2011.5,0.01]
[1742999113561,6.874,2011.8,2011.5,0.01]
[1742999114038,0.7847,2011.8,2011.5,0.01]
[1742999114240,3.7602,2012.8,2011.6,5.80016]
[1742999114440,3.7602,2012.8,2011.7,0.581016]
[1742999114441,4.82932,2012.8,2011.7,0.581016]
[1742999114638,4.82932,2012.8,2011.6,5.84979058]
[1742999114941,1.0192299,2012.7,2011.6,0.829]
[1742999115137,1.0192299,2012.7,2011.6,15.329]
[1742999115337,1.0192299,2012.7,2011.6,0.829]
[1742999115538,3.0,2012.4,2011.6,0.829]
[1742999115740,7.244,2012.3,2011.5,0.01]
[1742999116050,3.0,2012.0,2011.5,0.01]
[1742999116852,0.3,2012.3,2011.5,0.01]
[1742999117039,4.74257039,2012.9,2011.5,0.01]
[1742999117040,3.7987,2013.1,2012.3,4.96943]
[1742999117255,0.3,2013.2,2012.4,0.8264905]
[1742999117450,0.3,2013.2,2012.5,14.5]
[1742999117662,9.968,2013.1,2012.5,14.5]
[1742999117860,1.0268,2013.0,2012.0,0.7769]
[1742999118161,3.99653378,2012.8,2012.0,0.7769]
[1742999118349,6.974,2012.7,2012.0,0.7769]
[1742999118536,3.99653378,2012.8,2012.0,0.7769]
[1742999118739,3.0,2012.5,2011.5,0.783]
[1742999118940,0.9973,2012.4,2011.6,0.04970747]
[1742999119138,0.9973,2012.4,2011.5,5.52557039]
[1742999119876,0.9973,2012.4,2011.5,24.99697039]
[1742999120031,0.9973,2012.4,2011.5,5.52557039]
[1742999120367,3.9973,2012.4,2011.5,5.52557039]
[1742999120572,0.39973,2012.3,2011.5,20.02557039]
[1742999120885,10.94953378,2012.8,2011.9,9.94058]
[1742999121092,9.953,2012.8,2012.0,0.7888]
[1742999121939,6.937,2012.7,2012.0,0.7888]
[1742999122138,8.01125,2012.7,2012.0,0.7888]
[1742999122339,8.01125,2012.7,2011.7,0.7903]
[1742999122770,8.01125,2012.7,2011.8,4.7922752]
[1742999123065,6.937,2012.7,2011.9,4.97029]
[1742999123369,6.937,2012.7,2011.8,9.71321039]
[1742999123551,6.937,2012.7,2012.0,4.97005]
[1742999123745,6.937,2012.7,2012.0,4.97009]
[1742999123948,8.01125,2012.7,2011.8,9.71321039]
[1742999124136,8.01125,2012.7,2011.8,4.74257039]
[1742999124341,8.01125,2012.7,2011.7,3.7903]
[1742999124672,1.07425,2012.7,2012.1,4.96988]
[1742999124841,2.03797551,2013.0,2012.3,0.8027]
[1742999125044,6.917,2012.9,2012.3,0.8027]
[1742999125667,6.906,2013.0,2012.3,0.8027]
[1742999125968,6.906,2013.0,2012.4,4.79225994]
[1742999126361,6.906,2013.0,2012.3,10.74119]
[1742999126563,1.01355085,2013.2,2012.5,4.96871]
[1742999126870,6.889,2013.1,2012.6,5.01825258]
[1742999127070,35.561,2013.3,2012.6,0.04968258]
[1742999127248,35.561,2013.3,2012.7,4.96836]
[1742999127451,35.561,2013.3,2012.6,5.72717]
[1742999127452,35.561,2013.3,2012.6,0.7585]
[1742999127644,35.561,2013.3,2012.7,4.96835]
[1742999127842,1.01962658,2013.4,2013.1,9.70982039]
[1742999128043,1.01962658,2013.4,2013.2,0.7585]
[1742999128375,1.01962658,2013.4,2013.2,0.80816598]
[1742999128577,1.01962658,2013.4,2013.2,0.7585]
[1742999128767,6.873,2013.9,2013.2,0.80816603]
[1742999128967,3.5552,2013.8,2013.2,0.7585]
[1742999129379,0.8196,2014.2,2013.4,4.74257039]
[1742999129546,6.849,2014.2,2013.5,0.04965686]
[1742999129750,6.849,2014.2,2013.5,4.96637]
[1742999129950,6.849,2014.2,2013.4,9.70914039]
[1742999130147,7.85478189,2014.2,2013.6,4.96605]
[1742999130349,7.85478189,2014.2,2013.5,0.04965752]
[1742999130350,7.85478189,2014.2,2013.5,5.01607752]
[1742999130656,7.85478189,2014.2,2013.4,9.70915039]
[1742999130974,7.85478189,2014.2,2013.5,4.96638]
[1742999131179,6.831,2014.1,2013.4,4.74257039]
[1742999131475,6.831,2014.1,2013.2,8.72557]
[1742999131476,0.8161,2014.0,2013.2,0.7585]
[1742999131646,0.76471,2013.9,2013.2,0.7585]
[1742999131848,0.76471,2013.9,2013.3,4.96686]
[1742999132047,6.831,2014.1,2013.3,4.96686]
[1742999132048,6.831,2014.1,2013.3,4.96696]
[1742999132293,1.00578189,2014.2,2013.6,4.96622]
[1742999132488,0.7795,2015.1,2014.1,9.70742039]
[1742999132666,1.01562248,2014.9,2014.4,4.74257039]
[1742999132853,0.02,2014.9,2014.8,4.96327]
[1742999133179,0.02,2014.9,2014.8,5.01289107]
[1742999133378,0.02,2014.9,2014.7,9.70600039]
[1742999133680,0.02,2014.9,2014.8,4.96327]
[1742999133976,0.02,2014.9,2014.7,4.74257039]
[1742999134180,0.02,2014.9,2014.5,8.77895]
[1742999134383,0.02,2014.9,2014.5,0.8151]
[1742999135583,0.02,2014.9,2014.5,5.77898]
[1742999135889,0.02,2014.9,2014.5,6.14053193]
[1742999136061,0.02,2014.9,2014.5,0.8151]
[1742999136261,0.02,2014.9,2014.2,5.52477039]
[1742999136663,0.02,2014.9,2014.3,0.04963465]
[1742999137091,0.02,2014.9,2013.8,0.7825]
[1742999137281,3.02,2014.9,2013.8,0.7825]
[1742999137493,4.06335,2014.8,2013.8,0.7825]
[1742999137786,3.0,2014.3,2013.1,0.7825]
[1742999137999,6.819,2014.2,2013.3,4.74257039]
[1742999138148,6.819,2014.2,2013.6,9.70878039]
[1742999138347,10.54439064,2014.2,2013.5,0.7825]
[1742999138779,10.54439064,2014.2,2013.3,4.74257039]
[1742999138980,10.54439064,2014.2,2013.3,9.70941039]
[1742999139149,10.54439064,2014.2,2013.3,4.74257039]
[1742999139358,3.0,2013.9,2012.9,4.74257039]
[1742999139556,0.3,2013.8,2012.8,4.96802]
[1742999139851,0.3,2013.8,2012.9,4.79224125]
[1742999140052,6.8,2014.0,2013.5,4.9664]
[1742999140387,6.8,2014.0,2013.6,0.04965895]
[1742999140553,6.8,2014.0,2013.5,9.70904039]
[1742999140750,1.15317753,2014.1,2013.6,4.96613]
[1742999140988,1.15317753,2014.1,2013.7,0.04965227]
[1742999141384,1.15317753,2014.1,2013.8,4.74257039]
[1742999141584,1.15317753,2014.1,2013.5,9.70894039]
[1742999141890,6.797,2014.4,2013.7,4.96578]
[1742999142186,0.7505,2014.6,2014.0,4.96502]
[1742999142384,0.73921637,2014.7,2014.1,10.57861222]
[1742999142557,0.73921637,2014.7,2014.1,10.52897039]
[1742999142752,0.73921637,2014.7,2014.2,4.96471]
[1742999142954,0.73921637,2014.7,2014.4,9.70679039]
[1742999143152,0.73921637,2014.7,2014.5,5.01360434]
[1742999143466,0.02,2014.9,2014.4,4.74257039]
[1742999143666,0.02,2014.9,2014.4,9.70658039]
[1742999143873,0.02,2014.9,2014.5,4.96395]
[1742999144058,0.02,2014.9,2014.5,5.93460204]
[1742999144258,0.02,2014.9,2014.5,4.96389]
[1742999144872,0.02,2014.9,2014.4,9.70676039]
[1742999145067,0.02,2014.9,2014.4,4.74257039]
[1742999145275,0.02,2014.9,2014.5,5.01353023]
[1742999145607,0.02,2014.9,2014.6,4.96371]
[1742999145817,0.02,2014.9,2014.8,4.96327]
[1742999146099,0.02,2014.9,2014.7,0.8071]
[1742999146301,0.02,2014.9,2014.4,15.49002039]
[1742999146598,0.02,2014.9,2014.4,10.52579039]
[1742999146892,0.02,2014.9,2014.8,4.96327]
[1742999147125,0.02,2014.9,2014.8,5.01289183]
[1742999147480,0.02,2014.9,2014.7,9.70603039]
[1742999147687,0.02,2014.9,2014.7,4.96339]
[1742999147983,0.02,2014.9,2014.7,9.92672]
[1742999148166,0.02,2014.9,2014.8,5.01289379]
[1742999148366,0.02,2014.9,2014.8,0.85682379]
[1742999148590,0.02,2014.9,2014.6,4.74257039]
[1742999148796,0.02,2014.9,2014.5,5.76849]
[1742999148973,0.02,2014.9,2014.5,0.8045]
[1742999149294,0.02,2014.9,2014.6,4.74257039]
[1742999149597,0.02,2014.9,2014.6,9.75577058]
[1742999149893,0.02,2014.9,2014.7,9.92681]
[1742999150079,0.02,2014.9,2014.8,0.04962669]
[1742999150279,0.02,2014.9,2014.6,4.74257039]
[1742999150592,0.02,2014.9,2014.6,5.01335672]
[1742999151092,0.02,2014.9,2014.5,0.8045]
[1742999151596,0.02,2014.9,2014.6,5.01333965]
[1742999151895,0.02,2014.9,2014.7,4.96349]
[1742999152095,0.02,2014.9,2014.8,0.04962763]
[1742999152593,0.02,2014.9,2014.6,4.74257039]
[1742999153260,0.02,2014.9,2014.5,5.76833]
[1742999153464,0.02,2014.9,2014.3,4.74257039]
[1742999153694,0.02,2014.9,2014.6,9.70609039]
[1742999154306,0.02,2014.9,2014.7,5.01307767]
[1742999154596,0.02,2014.9,2014.8,4.96327]
[1742999155422,0.02,2014.9,2014.8,8.01289077]
[1742999155780,0.02,2014.9,2014.8,7.96327]
[1742999155980,0.02,2014.9,2014.8,10.30255104]
[1742999156710,0.02,2014.9,2014.8,11.67445104]
[1742999157204,0.02,2014.9,2014.8,12.05350756]
[1742999157395,0.02,2014.9,2014.8,9.71422652]
[1742999159916,1.00564493,2015.8,2015.5,4.9615]
[1742999160116,36.0446,2016.0,2015.6,0.04960691]
[1742999160317,36.0446,2016.0,2015.3,9.70453039]
[1742999160509,36.0446,2016.0,2015.4,4.96178]
[1742999160710,3.60446,2015.9,2015.4,4.96178]
[1742999161021,4.57608608,2015.9,2015.5,5.0110897]
[1742999161219,0.97162608,2015.9,2015.5,5.0110397]
[1742999161404,0.97162608,2015.9,2015.5,0.0496097]
[1742999161605,0.97162608,2015.9,2015.1,4.96247]
[1742999161919,0.8198,2015.8,2014.8,0.8219]
[1742999162213,3.0,2015.4,2014.2,10.45764039]
[1742999162419,7.6689,2015.3,2014.2,0.7504]
[1742999162612,0.7609,2015.0,2013.9,4.9654]
[1742999162792,0.7609,2014.7,2013.5,5.71677]
[1742999162992,0.7609,2014.5,2013.5,0.7504]
[1742999163193,0.73729,2014.4,2013.8,4.96556]
[1742999163393,0.7609,2014.5,2014.2,4.96453]
[1742999163593,0.7709,2014.9,2014.7,4.96351]
[1742999163820,7.4177,2015.2,2014.8,4.96321]
[1742999163986,0.8087,2015.2,2014.8,0.04962728]
[1742999164326,0.8087,2015.2,2014.3,4.96442]
[1742999164627,0.74187,2015.1,2014.0,4.96522]
[1742999164800,0.763,2014.9,2013.9,4.74257039]
[1742999165002,0.763,2014.9,2014.4,4.96417]
[1742999165189,0.763,2014.9,2014.4,0.04963707]
[1742999165495,0.74187,2015.1,2014.5,4.96377]
[1742999165694,0.763,2015.2,2014.6,5.01338067]
[1742999165924,0.763,2015.2,2014.6,0.04963067]
[1742999166111,0.763,2015.2,2014.4,0.8171]
[1742999166295,7.371,2015.2,2014.6,4.96375]
[1742999166490,7.371,2015.2,2014.5,4.96385]
[1742999166695,0.7371,2015.1,2014.5,4.96385]
[1742999167141,1.17954231,2015.1,2014.5,4.96385]
[1742999167343,1.17954231,2015.1,2014.2,4.74257039]
[1742999167542,0.44244231,2015.1,2014.5,4.74257039]
[1742999167745,0.44244231,2015.1,2014.9,4.96299]
[1742999167910,0.44244231,2015.1,2015.0,4.96277]
[1742999168096,0.44244231,2015.1,2015.0,5.01239281]
[1742999168289,0.44244231,2015.1,2015.0,4.96277]
[1742999168537,0.7728,2015.5,2015.3,4.96195]
[1742999168732,7.3663,2015.8,2015.4,4.96156]
[1742999169192,0.7893,2015.8,2015.4,4.96156]
[1742999169393,0.7893,2015.8,2015.5,0.04960965]
[1742999169595,0.7893,2015.8,2015.4,4.96159]
[1742999169799,0.7893,2015.8,2015.3,4.96191]
[1742999170343,1.52563,2015.8,2014.8,4.96306]
[1742999170509,3.0,2015.6,2014.3,9.70691039]
[1742999170840,0.8202,2015.4,2014.8,9.92623]
[1742999171132,0.8202,2015.4,2015.0,4.96267]
[1742999171503,0.8202,2015.4,2014.8,4.96302]
[1742999171504,0.8202,2015.4,2014.9,4.96295]
[1742999171704,1.6030607,2015.4,2014.7,3.0]
[1742999172006,0.8202,2015.4,2015.1,4.96241]
[1742999172404,0.44340697,2015.5,2015.3,4.96204]
[1742999172627,0.7585,2015.7,2015.4,4.96179]
[1742999172831,0.7585,2016.2,2015.5,4.79218572]
[1742999173203,0.7585,2016.2,2015.8,4.96068]
[1742999173404,4.35365,2016.2,2015.9,4.96051]
[1742999173605,10.89365,2016.2,2016.0,4.96022]
[1742999173802,0.7585,2016.2,2015.8,9.70328039]
[1742999174008,0.7585,2016.2,2015.8,4.9608]
[1742999174310,0.7585,2016.2,2015.7,4.96097]